[Event "Live Chess"]
[Site "Chess.com"]
[Date "2024.06.02"]
[Round "-"]
[White "Dhaydon19"]
[Black "Mangoalo"]
[Result "1-0"]
[WhiteElo "2673"]
[BlackElo "1065"]
[TimeControl "300"]
[EndTime "21:20:51 PDT"]
[Termination "Dhaydon19 won by checkmate"]

1. d4 {[%clk 0:04:57.8]} 1... Nf6 {[%clk 0:04:58.4]} 2. Nf3 {[%clk 0:04:57.2]}
2... e6 {[%clk 0:04:58.3]} 3. g3 {[%clk 0:04:56.5]} 3... Bb4+ {[%clk 0:04:57.4]}
4. c3 {[%clk 0:04:55]} 4... Be7 {[%clk 0:04:56.4]} 5. Bg2 {[%clk 0:04:54.7]}
5... O-O {[%clk 0:04:55.7]} 6. O-O {[%clk 0:04:54]} 6... d5 {[%clk 0:04:55.2]}
7. Qc2 {[%clk 0:04:53.6]} 7... Nc6 {[%clk 0:04:54.8]} 8. Nbd2 {[%clk 0:04:53]}
8... Bd7 {[%clk 0:04:54.4]} 9. e4 {[%clk 0:04:52.1]} 9... Re8 {[%clk 0:04:53.2]}
10. Ng5 {[%clk 0:04:47.9]} 10... h6 {[%clk 0:04:50.5]} 11. Ngf3 {[%clk 0:04:47]}
11... dxe4 {[%clk 0:04:49.2]} 12. Nxe4 {[%clk 0:04:46.8]} 12... Nxe4 {[%clk
0:04:48.1]} 13. Qxe4 {[%clk 0:04:46.5]} 13... f5 {[%clk 0:04:45]} 14. Qc2 {[%clk
0:04:44.6]} 14... Rf8 {[%clk 0:04:43.2]} 15. Re1 {[%clk 0:04:42.5]} 15... Bf6
{[%clk 0:04:36.7]} 16. Qb3 {[%clk 0:04:38.4]} 16... b6 {[%clk 0:04:33.8]} 17.
Bf4 {[%clk 0:04:29.7]} 17... Ne7 {[%clk 0:04:27.6]} 18. Rxe6 {[%clk 0:04:24.9]}
18... Bxe6 {[%clk 0:04:26.2]} 19. Qxe6+ {[%clk 0:04:24.6]} 19... Kh8 {[%clk
0:04:23.5]} 20. Ne5 {[%clk 0:04:24.1]} 20... Bxe5 {[%clk 0:04:20.8]} 21. Bxe5
{[%clk 0:04:21.9]} 21... Re8 {[%clk 0:03:56.1]} 22. Qxh6+ {[%clk 0:04:19.4]}
22... Kg8 {[%clk 0:03:52]} 23. Qxg7# {[%clk 0:04:19.1]} 1-0

[Event "Live Chess"]
[Site "Chess.com"]
[Date "2024.06.02"]
[Round "-"]
[White "KGreenGator"]
[Black "Duke_of_Bebington"]
[Result "1-0"]
[WhiteElo "1791"]
[BlackElo "1652"]
[TimeControl "300"]
[EndTime "21:21:46 PDT"]
[Termination "KGreenGator won by resignation"]

1. c4 {[%clk 0:04:58]} 1... c6 {[%clk 0:04:54]} 2. Nc3 {[%clk 0:04:57.9]} 2...
d5 {[%clk 0:04:52.3]} 3. d4 {[%clk 0:04:57.8]} 3... e5 {[%clk 0:04:50.4]} 4. e3
{[%clk 0:04:57.7]} 4... e4 {[%clk 0:04:46.2]} 5. cxd5 {[%clk 0:04:55.7]} 5...
cxd5 {[%clk 0:04:44.7]} 6. Qb3 {[%clk 0:04:54]} 6... Nf6 {[%clk 0:04:40.2]} 7.
Nge2 {[%clk 0:04:51.3]} 7... Nc6 {[%clk 0:04:32.2]} 8. a3 {[%clk 0:04:48.4]}
8... Be6 {[%clk 0:04:30.4]} 9. Qxb7 {[%clk 0:04:44.6]} 9... Bd7 {[%clk
0:04:19.1]} 10. Nf4 {[%clk 0:04:37.1]} 10... Rb8 {[%clk 0:04:14.1]} 11. Qa6
{[%clk 0:04:35]} 11... Rb6 {[%clk 0:04:11.3]} 12. Qe2 {[%clk 0:04:31.1]} 12...
Bg4 {[%clk 0:04:03.4]} 13. Qd2 {[%clk 0:04:22.8]} 13... Na5 {[%clk 0:03:52.5]}
14. Qc2 {[%clk 0:04:17.8]} 14... Be6 {[%clk 0:03:38.7]} 15. Nxe6 {[%clk
0:04:14.9]} 15... fxe6 {[%clk 0:03:37.7]} 16. b4 {[%clk 0:04:09.1]} 16... Nc6
{[%clk 0:03:29.5]} 17. Na4 {[%clk 0:04:04.4]} 17... Nxb4 {[%clk 0:03:14.7]} 18.
axb4 {[%clk 0:04:00.5]} 18... Bxb4+ {[%clk 0:03:12.8]} 19. Bd2 {[%clk
0:03:59.1]} 19... Bxd2+ {[%clk 0:03:04.6]} 20. Qxd2 {[%clk 0:03:57.5]} 20... Rb3
{[%clk 0:02:54.9]} 21. Nc5 {[%clk 0:03:52.8]} 21... Rb6 {[%clk 0:02:48.5]} 22.
Be2 {[%clk 0:03:45.2]} 22... O-O {[%clk 0:02:46.9]} 23. Rxa7 {[%clk 0:03:41.5]}
23... Qb8 {[%clk 0:02:42.5]} 24. Ra1 {[%clk 0:03:36.2]} 24... Rb2 {[%clk
0:02:37.2]} 25. Qc3 {[%clk 0:03:32.2]} 25... Rc8 {[%clk 0:02:30.5]} 26. Bd1
{[%clk 0:03:21.8]} 26... Nd7 {[%clk 0:02:25.3]} 27. O-O {[%clk 0:03:13.9]} 27...
e5 {[%clk 0:02:21]} 28. Nxd7 {[%clk 0:03:05.2]} 28... Rxc3 {[%clk 0:02:13.6]}
29. Nxb8 {[%clk 0:03:03.9]} 29... Rxb8 {[%clk 0:02:12.9]} 30. dxe5 {[%clk
0:03:02.9]} 1-0

[Event "Live Chess"]
[Site "Chess.com"]
[Date "2024.06.02"]
[Round "-"]
[White "McFim"]
[Black "KeithArkell"]
[Result "0-1"]
[WhiteElo "1645"]
[BlackElo "2423"]
[TimeControl "300"]
[EndTime "21:22:25 PDT"]
[Termination "KeithArkell won by resignation"]

1. e4 {[%clk 0:04:55.9]} 1... c6 {[%clk 0:04:59.3]} 2. d4 {[%clk 0:04:54.1]}
2... d5 {[%clk 0:04:59.2]} 3. exd5 {[%clk 0:04:53.7]} 3... cxd5 {[%clk
0:04:58.6]} 4. Bd3 {[%clk 0:04:53.1]} 4... Nf6 {[%clk 0:04:58.5]} 5. c3 {[%clk
0:04:51.8]} 5... Nc6 {[%clk 0:04:57.9]} 6. Bf4 {[%clk 0:04:50.3]} 6... Bg4
{[%clk 0:04:57.3]} 7. Nf3 {[%clk 0:04:49.4]} 7... e6 {[%clk 0:04:56.1]} 8. Nbd2
{[%clk 0:04:48]} 8... Bd6 {[%clk 0:04:55.3]} 9. Bxd6 {[%clk 0:04:46.2]} 9...
Qxd6 {[%clk 0:04:54.9]} 10. O-O {[%clk 0:04:45.5]} 10... O-O {[%clk 0:04:53.2]}
11. Qe1 {[%clk 0:04:44.2]} 11... Bxf3 {[%clk 0:04:52.2]} 12. Nxf3 {[%clk
0:04:42.7]} 12... Qf4 {[%clk 0:04:51.4]} 13. Qd2 {[%clk 0:04:32.8]} 13... Qxd2
{[%clk 0:04:49.9]} 14. Nxd2 {[%clk 0:04:31.7]} 14... Rab8 {[%clk 0:04:49.1]} 15.
a4 {[%clk 0:04:30]} 15... Ne8 {[%clk 0:04:47.9]} 16. f4 {[%clk 0:04:27.2]} 16...
Nd6 {[%clk 0:04:47]} 17. g4 {[%clk 0:04:23]} 17... g6 {[%clk 0:04:46.4]} 18. Rf2
{[%clk 0:04:04.9]} 18... Rfe8 {[%clk 0:04:44.3]} 19. Re1 {[%clk 0:04:02.7]}
19... a6 {[%clk 0:04:42.7]} 20. f5 {[%clk 0:03:55.3]} 20... exf5 {[%clk
0:04:41.2]} 21. gxf5 {[%clk 0:03:54]} 21... Rxe1+ {[%clk 0:04:36.4]} 0-1

[Event "Live Chess"]
[Site "Chess.com"]
[Date "2024.06.02"]
[Round "-"]
[White "Delacorta"]
[Black "juniortay"]
[Result "0-1"]
[WhiteElo "1501"]
[BlackElo "2449"]
[TimeControl "300"]
[EndTime "21:22:51 PDT"]
[Termination "juniortay won by resignation"]

1. d4 {[%clk 0:04:57.6]} 1... Nf6 {[%clk 0:04:58.7]} 2. Nf3 {[%clk 0:04:56.6]}
2... g6 {[%clk 0:04:57.6]} 3. h4 {[%clk 0:04:54.4]} 3... h5 {[%clk 0:04:56.5]}
4. c4 {[%clk 0:04:48.8]} 4... Bg7 {[%clk 0:04:55.6]} 5. Nc3 {[%clk 0:04:45.2]}
5... O-O {[%clk 0:04:54.8]} 6. Qc2 {[%clk 0:04:39.3]} 6... d6 {[%clk 0:04:53.8]}
7. e4 {[%clk 0:04:38]} 7... e5 {[%clk 0:04:51.1]} 8. dxe5 {[%clk 0:04:28.6]}
8... dxe5 {[%clk 0:04:50.1]} 9. Nxe5 {[%clk 0:04:26.2]} 9... Re8 {[%clk
0:04:46.5]} 10. Nf3 {[%clk 0:04:01.5]} 10... Nxe4 {[%clk 0:04:45]} 11. Nxe4
{[%clk 0:03:38.9]} 11... Qe7 {[%clk 0:04:41.7]} 12. Nd2 {[%clk 0:03:31.5]} 12...
f5 {[%clk 0:04:39.3]} 13. Qb3 {[%clk 0:02:52.3]} 13... fxe4 {[%clk 0:04:36.7]}
14. c5+ {[%clk 0:02:50.6]} 14... Kh7 {[%clk 0:04:34.8]} 15. Be2 {[%clk
0:02:41.4]} 15... Nc6 {[%clk 0:04:32.9]} 16. O-O {[%clk 0:02:39.9]} 16... Nd4
{[%clk 0:04:30.4]} 17. Qd1 {[%clk 0:02:37.5]} 17... Qxh4 {[%clk 0:04:28.8]} 18.
Bc4 {[%clk 0:02:02]} 18... Bg4 {[%clk 0:04:25]} 19. f3 {[%clk 0:01:43.4]} 19...
exf3 {[%clk 0:04:20.9]} 20. Nxf3 {[%clk 0:01:32.7]} 20... Nxf3+ {[%clk
0:04:15.2]} 21. Rxf3 {[%clk 0:01:28]} 21... Bxf3 {[%clk 0:04:11.6]} 22. Qxf3
{[%clk 0:01:19.4]} 22... Re1+ {[%clk 0:04:09.5]} 23. Bf1 {[%clk 0:01:17.2]}
23... Bd4+ {[%clk 0:04:08.6]} 0-1

[Event "Live Chess"]
[Site "Chess.com"]
[Date "2024.06.02"]
[Round "-"]
[White "IgorSchukin"]
[Black "MagnersCarlsberg2870"]
[Result "1-0"]
[WhiteElo "1787"]
[BlackElo "1820"]
[TimeControl "300"]
[EndTime "21:22:55 PDT"]
[Termination "IgorSchukin won by resignation"]

1. e4 {[%clk 0:04:57.5]} 1... d5 {[%clk 0:04:58]} 2. exd5 {[%clk 0:04:55.8]}
2... Nf6 {[%clk 0:04:56.1]} 3. Nc3 {[%clk 0:04:54.9]} 3... Nxd5 {[%clk
0:04:54.5]} 4. Bc4 {[%clk 0:04:52.8]} 4... c6 {[%clk 0:04:48.9]} 5. Nf3 {[%clk
0:04:50.7]} 5... Nxc3 {[%clk 0:04:43.7]} 6. bxc3 {[%clk 0:04:48.2]} 6... h6
{[%clk 0:04:33]} 7. h3 {[%clk 0:04:45.7]} 7... Nd7 {[%clk 0:04:29.5]} 8. d4
{[%clk 0:04:44.6]} 8... Nb6 {[%clk 0:04:27]} 9. Bd3 {[%clk 0:04:42.8]} 9... Nd5
{[%clk 0:04:24.9]} 10. Bd2 {[%clk 0:04:37.2]} 10... Be6 {[%clk 0:04:10.7]} 11.
O-O {[%clk 0:04:32.4]} 11... g5 {[%clk 0:04:08.4]} 12. Re1 {[%clk 0:04:30.8]}
12... g4 {[%clk 0:04:03.1]} 13. Nh4 {[%clk 0:04:23.6]} 13... gxh3 {[%clk
0:04:00.9]} 14. Rxe6 {[%clk 0:04:20.2]} 14... fxe6 {[%clk 0:03:59.3]} 15. gxh3
{[%clk 0:03:57.1]} 15... Rg8+ {[%clk 0:03:57.8]} 16. Kf1 {[%clk 0:03:48.9]}
16... Qd6 {[%clk 0:03:54.3]} 17. Qh5+ {[%clk 0:03:47]} 17... Kd7 {[%clk
0:03:49.7]} 18. Ng6 {[%clk 0:03:41.9]} 18... Qh2 {[%clk 0:03:42.8]} 19. Ke2
{[%clk 0:03:23.1]} 19... Bg7 {[%clk 0:03:21.2]} 20. c4 {[%clk 0:03:14.5]} 20...
Nf6 {[%clk 0:03:18.6]} 21. Qc5 {[%clk 0:02:57.5]} 21... Bf8 {[%clk 0:03:11]} 22.
Bf4 {[%clk 0:02:36.6]} 22... Qxh3 {[%clk 0:03:06.8]} 23. Ne5+ {[%clk 0:02:20.8]}
23... Ke8 {[%clk 0:02:57.7]} 24. Rb1 {[%clk 0:01:59.1]} 24... Qh5+ {[%clk
0:02:43.4]} 25. Kd2 {[%clk 0:01:53.5]} 25... Rg2 {[%clk 0:02:15.2]} 26. Be3
{[%clk 0:01:35.3]} 26... Ng4 {[%clk 0:01:46.4]} 27. Bg6+ {[%clk 0:01:31]} 1-0

[Event "Live Chess"]
[Site "Chess.com"]
[Date "2024.06.02"]
[Round "-"]
[White "Mangoalo"]
[Black "Duke_of_Bebington"]
[Result "0-1"]
[WhiteElo "1064"]
[BlackElo "1653"]
[TimeControl "300"]
[EndTime "21:23:22 PDT"]
[Termination "Duke_of_Bebington won by resignation"]

1. e4 {[%clk 0:04:58.7]} 1... e5 {[%clk 0:04:58.8]} 2. Nf3 {[%clk 0:04:58.6]}
2... Nf6 {[%clk 0:04:57.4]} 3. Nxe5 {[%clk 0:04:56.1]} 3... d6 {[%clk
0:04:55.7]} 4. Nxf7 {[%clk 0:04:48.9]} 4... Kxf7 {[%clk 0:04:54.5]} 5. Bc4+
{[%clk 0:04:45.6]} 5... Ke8 {[%clk 0:04:43.4]} 6. d4 {[%clk 0:04:39.5]} 6... Nc6
{[%clk 0:04:34.2]} 7. d5 {[%clk 0:04:37.5]} 7... Ne5 {[%clk 0:04:32.2]} 8. Bb3
{[%clk 0:04:35.3]} 8... Nxe4 {[%clk 0:04:27.3]} 9. Qh5+ {[%clk 0:04:32.9]} 9...
g6 {[%clk 0:04:25.5]} 10. Qh3 {[%clk 0:04:26.2]} 10... Bxh3 {[%clk 0:04:23]} 11.
gxh3 {[%clk 0:04:24.8]} 0-1

[Event "Live Chess"]
[Site "Chess.com"]
[Date "2024.06.02"]
[Round "-"]
[White "BostonStrangler"]
[Black "booktrunk"]
[Result "1-0"]
[WhiteElo "2115"]
[BlackElo "1519"]
[TimeControl "300"]
[EndTime "21:23:29 PDT"]
[Termination "BostonStrangler won by checkmate"]

1. e4 {[%clk 0:04:56.3]} 1... b6 {[%clk 0:04:52.2]} 2. d4 {[%clk 0:04:54.3]}
2... Bb7 {[%clk 0:04:48.7]} 3. Bd3 {[%clk 0:04:52.5]} 3... h6 {[%clk 0:04:46]}
4. Qe2 {[%clk 0:04:49.4]} 4... e6 {[%clk 0:04:42.1]} 5. c3 {[%clk 0:04:47.9]}
5... Nf6 {[%clk 0:04:40.7]} 6. e5 {[%clk 0:04:46.1]} 6... Nd5 {[%clk 0:04:37.6]}
7. f4 {[%clk 0:04:36.2]} 7... Be7 {[%clk 0:04:34.2]} 8. Nf3 {[%clk 0:04:34.4]}
8... c5 {[%clk 0:04:25.8]} 9. O-O {[%clk 0:04:22.1]} 9... cxd4 {[%clk 0:04:24]}
10. cxd4 {[%clk 0:04:15]} 10... Nb4 {[%clk 0:04:20.3]} 11. Be4 {[%clk
0:04:08.1]} 11... Bc6 {[%clk 0:04:14.8]} 12. Nc3 {[%clk 0:04:02.2]} 12... Bxe4
{[%clk 0:04:11.9]} 13. Qxe4 {[%clk 0:03:53.6]} 13... N4c6 {[%clk 0:04:03.9]} 14.
d5 {[%clk 0:03:47.3]} 14... exd5 {[%clk 0:04:01.8]} 15. Nxd5 {[%clk 0:03:45.9]}
15... Bc5+ {[%clk 0:03:57.6]} 16. Kh1 {[%clk 0:03:43.2]} 16... Na6 {[%clk
0:03:54.8]} 17. f5 {[%clk 0:03:40]} 17... Nab4 {[%clk 0:03:47.3]} 18. Nf6+
{[%clk 0:03:04.4]} 18... gxf6 {[%clk 0:03:33.8]} 19. exf6+ {[%clk 0:03:02.1]}
19... Kf8 {[%clk 0:03:32.6]} 20. a3 {[%clk 0:02:58.5]} 20... Na6 {[%clk
0:03:25]} 21. b4 {[%clk 0:02:52.8]} 21... Bxb4 {[%clk 0:03:16.1]} 22. axb4
{[%clk 0:02:47.4]} 22... Naxb4 {[%clk 0:03:10.2]} 23. Bb2 {[%clk 0:02:43.1]}
23... Qe8 {[%clk 0:03:03.7]} 24. Qg4 {[%clk 0:02:38.2]} 24... Rg8 {[%clk
0:02:59.6]} 25. Qh4 {[%clk 0:02:37.2]} 25... Rh8 {[%clk 0:02:58.1]} 26. Rae1
{[%clk 0:02:29.7]} 26... Qd8 {[%clk 0:02:55.9]} 27. Qg4 {[%clk 0:02:02.4]} 27...
Nd3 {[%clk 0:02:50.6]} 28. Qg7# {[%clk 0:01:58.6]} 1-0

[Event "Live Chess"]
[Site "Chess.com"]
[Date "2024.06.02"]
[Round "-"]
[White "Dhaydon19"]
[Black "RuslanChessN"]
[Result "1-0"]
[WhiteElo "2673"]
[BlackElo "1909"]
[TimeControl "300"]
[EndTime "21:24:50 PDT"]
[Termination "Dhaydon19 won by resignation"]

1. d4 {[%clk 0:04:56.7]} 1... d5 {[%clk 0:04:58.6]} 2. Nf3 {[%clk 0:04:56.2]}
2... Bf5 {[%clk 0:04:57.2]} 3. g3 {[%clk 0:04:55.6]} 3... e6 {[%clk 0:04:56.4]}
4. Bg2 {[%clk 0:04:51.1]} 4... c5 {[%clk 0:04:55.1]} 5. c3 {[%clk 0:04:50]} 5...
Nc6 {[%clk 0:04:54]} 6. O-O {[%clk 0:04:48.2]} 6... Nf6 {[%clk 0:04:50.8]} 7.
dxc5 {[%clk 0:04:47.2]} 7... Bxc5 {[%clk 0:04:49.1]} 8. Nbd2 {[%clk 0:04:46.9]}
8... O-O {[%clk 0:04:45.1]} 9. Nb3 {[%clk 0:04:40]} 9... Bd6 {[%clk 0:04:43.9]}
10. Nbd4 {[%clk 0:04:33.5]} 10... Bg6 {[%clk 0:04:42.5]} 11. Bg5 {[%clk
0:04:28.3]} 11... e5 {[%clk 0:04:33.2]} 12. Nb3 {[%clk 0:04:23.2]} 12... Bc7
{[%clk 0:04:27.2]} 13. Nh4 {[%clk 0:04:19.6]} 13... Re8 {[%clk 0:04:07.6]} 14.
Nxg6 {[%clk 0:04:15.5]} 14... hxg6 {[%clk 0:04:06.1]} 15. Bxf6 {[%clk
0:04:14.8]} 15... gxf6 {[%clk 0:04:05]} 16. Qxd5 {[%clk 0:04:13.6]} 16... Qxd5
{[%clk 0:04:02.6]} 17. Bxd5 {[%clk 0:04:13.5]} 17... Rad8 {[%clk 0:03:54]} 18.
Rad1 {[%clk 0:04:11.9]} 18... Bb6 {[%clk 0:03:48.2]} 19. Bxc6 {[%clk 0:04:08.3]}
19... bxc6 {[%clk 0:03:46.9]} 20. e4 {[%clk 0:04:06]} 20... Kf8 {[%clk
0:03:43.8]} 21. Kg2 {[%clk 0:04:05.2]} 21... Ke7 {[%clk 0:03:43.1]} 22. Kf3
{[%clk 0:04:04.3]} 22... Ke6 {[%clk 0:03:42]} 23. Ke2 {[%clk 0:04:02.9]} 23...
f5 {[%clk 0:03:39.2]} 24. Nd2 {[%clk 0:03:59.8]} 24... Rd7 {[%clk 0:03:29.2]}
25. Nf3 {[%clk 0:03:52.9]} 25... fxe4 {[%clk 0:03:23.7]} 26. Ng5+ {[%clk
0:03:50.3]} 26... Ke7 {[%clk 0:03:11.6]} 27. Rxd7+ {[%clk 0:03:48.1]} 27... Kxd7
{[%clk 0:03:10.6]} 28. Nxf7 {[%clk 0:03:46.1]} 1-0

[Event "Live Chess"]
[Site "Chess.com"]
[Date "2024.06.02"]
[Round "-"]
[White "NeilDruggan73"]
[Black "Winterowl"]
[Result "1-0"]
[WhiteElo "1762"]
[BlackElo "1559"]
[TimeControl "300"]
[EndTime "21:25:48 PDT"]
[Termination "NeilDruggan73 won by resignation"]

1. d4 {[%clk 0:04:59]} 1... Nf6 {[%clk 0:04:58.1]} 2. Nf3 {[%clk 0:04:58.1]}
2... d6 {[%clk 0:04:55.8]} 3. c4 {[%clk 0:04:57.3]} 3... g6 {[%clk 0:04:54]} 4.
Nc3 {[%clk 0:04:56.6]} 4... Bg7 {[%clk 0:04:52.9]} 5. Bf4 {[%clk 0:04:55.5]}
5... Nbd7 {[%clk 0:04:51.7]} 6. Qd2 {[%clk 0:04:54.9]} 6... O-O {[%clk 0:04:50]}
7. e4 {[%clk 0:04:54]} 7... Re8 {[%clk 0:04:43.1]} 8. O-O-O {[%clk 0:04:53.2]}
8... c5 {[%clk 0:04:36.4]} 9. d5 {[%clk 0:04:51.2]} 9... Nh5 {[%clk 0:04:33.5]}
10. Bh6 {[%clk 0:04:49.3]} 10... Ne5 {[%clk 0:04:25.6]} 11. Bxg7 {[%clk
0:04:47.7]} 11... Nxg7 {[%clk 0:04:23.6]} 12. h4 {[%clk 0:04:44.2]} 12... a6
{[%clk 0:04:22.3]} 13. Ne1 {[%clk 0:04:35.4]} 13... h5 {[%clk 0:04:20.2]} 14. f4
{[%clk 0:04:34.5]} 14... Ng4 {[%clk 0:04:17.9]} 15. Nf3 {[%clk 0:04:31.3]} 15...
Rb8 {[%clk 0:04:15.3]} 16. g3 {[%clk 0:04:25.6]} 16... Bd7 {[%clk 0:04:10.5]}
17. Re1 {[%clk 0:04:16.2]} 17... b5 {[%clk 0:04:09.1]} 18. cxb5 {[%clk
0:04:14.6]} 18... axb5 {[%clk 0:04:08.2]} 19. e5 {[%clk 0:04:07.9]} 19... b4
{[%clk 0:04:03.8]} 20. Nd1 {[%clk 0:04:02.7]} 20... Bf5 {[%clk 0:03:57.5]} 21.
Bd3 {[%clk 0:04:00.6]} 21... Bxd3 {[%clk 0:03:54.3]} 22. Qxd3 {[%clk 0:03:59.6]}
22... Nf5 {[%clk 0:03:51.6]} 23. e6 {[%clk 0:03:52.6]} 23... fxe6 {[%clk
0:03:46.5]} 24. Rxe6 {[%clk 0:03:50.1]} 24... Kg7 {[%clk 0:03:40.4]} 25. Ng5
{[%clk 0:03:43.5]} 25... Qc7 {[%clk 0:03:32.8]} 26. Rhe1 {[%clk 0:03:36.9]}
26... Qa5 {[%clk 0:03:29.4]} 27. Kb1 {[%clk 0:03:32.6]} 27... Ra8 {[%clk
0:03:22.9]} 28. Qc4 {[%clk 0:03:28.4]} 28... Nd4 {[%clk 0:03:14.2]} 29. Rxe7+
{[%clk 0:03:22.9]} 29... Kf8 {[%clk 0:03:06.6]} 30. Nh7+ {[%clk 0:03:08.6]}
30... Kg8 {[%clk 0:03:04.1]} 31. Rxe8+ {[%clk 0:03:01.3]} 31... Rxe8 {[%clk
0:03:02.6]} 32. Rxe8+ {[%clk 0:02:59.3]} 32... Kxh7 {[%clk 0:03:01.7]} 33. b3
{[%clk 0:02:52.2]} 33... Qa7 {[%clk 0:02:50.3]} 34. Qf1 {[%clk 0:02:37]} 34...
Qf7 {[%clk 0:02:47.6]} 35. Qe1 {[%clk 0:02:35.8]} 35... Qf5+ {[%clk 0:02:45.4]}
36. Qe4 {[%clk 0:02:22.6]} 36... Qxe4+ {[%clk 0:02:42.8]} 37. Rxe4 {[%clk
0:02:22.3]} 37... Kg7 {[%clk 0:02:35.9]} 38. Ne3 {[%clk 0:02:20.9]} 38... Nf2
{[%clk 0:02:33.1]} 39. Re7+ {[%clk 0:02:18.7]} 39... Kf6 {[%clk 0:02:31.4]} 40.
Rd7 {[%clk 0:02:17.7]} 40... Nb5 {[%clk 0:02:28.5]} 41. Rb7 {[%clk 0:02:16.1]}
41... Nc3+ {[%clk 0:02:26.3]} 42. Kb2 {[%clk 0:02:12.5]} 42... Nd3+ {[%clk
0:02:24.9]} 43. Kc2 {[%clk 0:02:11.8]} 43... Ne1+ {[%clk 0:02:22.3]} 44. Kd2
{[%clk 0:02:10.7]} 44... Nf3+ {[%clk 0:02:21.2]} 45. Kd3 {[%clk 0:02:09.1]}
45... Ne1+ {[%clk 0:02:19.3]} 46. Kc4 {[%clk 0:02:08.2]} 46... Nf3 {[%clk
0:02:14.5]} 47. Rb6 {[%clk 0:02:06.6]} 47... Ke7 {[%clk 0:02:11.6]} 48. Rb7+
{[%clk 0:02:04.7]} 48... Kf6 {[%clk 0:02:09.9]} 49. Ra7 {[%clk 0:02:02.5]} 49...
Nd2+ {[%clk 0:02:07.3]} 50. Kd3 {[%clk 0:01:59.9]} 50... Nde4 {[%clk 0:02:06.2]}
51. Ra6 {[%clk 0:01:54.8]} 51... Ke7 {[%clk 0:02:02.2]} 52. Nc4 {[%clk
0:01:53.8]} 52... Nxg3 {[%clk 0:01:58.9]} 53. Nxd6 {[%clk 0:01:52.6]} 53... Nge2
{[%clk 0:01:49.5]} 54. Ne4 {[%clk 0:01:51.1]} 54... Nxe4 {[%clk 0:01:47]} 55.
Kxe4 {[%clk 0:01:49.2]} 55... Nc3+ {[%clk 0:01:46.7]} 56. Ke5 {[%clk 0:01:48.1]}
56... Ne2 {[%clk 0:01:44.5]} 57. Ra7+ {[%clk 0:01:47.1]} 57... Kf8 {[%clk
0:01:42.5]} 58. d6 {[%clk 0:01:46.4]} 1-0

[Event "Live Chess"]
[Site "Chess.com"]
[Date "2024.06.02"]
[Round "-"]
[White "Delacorta"]
[Black "McFim"]
[Result "0-1"]
[WhiteElo "1493"]
[BlackElo "1650"]
[TimeControl "300"]
[EndTime "21:26:19 PDT"]
[Termination "McFim won by resignation"]

1. d4 {[%clk 0:04:57.2]} 1... d5 {[%clk 0:04:56.9]} 2. Nf3 {[%clk 0:04:56.1]}
2... Nf6 {[%clk 0:04:54.4]} 3. e3 {[%clk 0:04:55.1]} 3... Bf5 {[%clk 0:04:51.5]}
4. Bd3 {[%clk 0:04:53.7]} 4... Bxd3 {[%clk 0:04:48.9]} 5. cxd3 {[%clk
0:04:53.6]} 5... e6 {[%clk 0:04:46.6]} 6. O-O {[%clk 0:04:50.8]} 6... c5 {[%clk
0:04:44.8]} 7. dxc5 {[%clk 0:04:49]} 7... Bxc5 {[%clk 0:04:43]} 8. Nbd2 {[%clk
0:04:35.3]} 8... O-O {[%clk 0:04:40.5]} 9. Nb3 {[%clk 0:04:33.7]} 9... Bd6
{[%clk 0:04:38.4]} 10. d4 {[%clk 0:04:15.4]} 10... Nc6 {[%clk 0:04:35.6]} 11.
Nbd2 {[%clk 0:04:10.5]} 11... Rc8 {[%clk 0:04:32.8]} 12. a3 {[%clk 0:04:08.6]}
12... Bb8 {[%clk 0:04:27.7]} 13. b4 {[%clk 0:04:07]} 13... a6 {[%clk 0:04:24.7]}
14. Bb2 {[%clk 0:04:05.2]} 14... Qd6 {[%clk 0:04:22.3]} 15. g3 {[%clk
0:03:58.1]} 15... Ne7 {[%clk 0:04:11.9]} 16. Ne5 {[%clk 0:03:54]} 16... Nd7
{[%clk 0:04:05.8]} 17. f4 {[%clk 0:03:52.5]} 17... f6 {[%clk 0:04:03.4]} 18.
Nxd7 {[%clk 0:03:40.9]} 18... Qxd7 {[%clk 0:04:01.3]} 19. Qh5 {[%clk 0:03:39.7]}
19... Rc2 {[%clk 0:03:42]} 0-1

[Event "Live Chess"]
[Site "Chess.com"]
[Date "2024.06.02"]
[Round "-"]
[White "Duke_of_Bebington"]
[Black "IgorSchukin"]
[Result "1-0"]
[WhiteElo "1664"]
[BlackElo "1776"]
[TimeControl "300"]
[EndTime "21:26:38 PDT"]
[Termination "Duke_of_Bebington won by checkmate"]

1. e4 {[%clk 0:04:58]} 1... c5 {[%clk 0:04:58.6]} 2. c3 {[%clk 0:04:56.3]} 2...
e6 {[%clk 0:04:58.1]} 3. d4 {[%clk 0:04:55.5]} 3... d5 {[%clk 0:04:56]} 4. e5
{[%clk 0:04:49.8]} 4... Nc6 {[%clk 0:04:53.8]} 5. Nf3 {[%clk 0:04:47.3]} 5...
cxd4 {[%clk 0:04:49.7]} 6. cxd4 {[%clk 0:04:45.7]} 6... Qb6 {[%clk 0:04:47.3]}
7. Nc3 {[%clk 0:04:41.4]} 7... Bb4 {[%clk 0:04:44.9]} 8. Be2 {[%clk 0:04:35.2]}
8... Nge7 {[%clk 0:04:42.8]} 9. O-O {[%clk 0:04:32.2]} 9... Nf5 {[%clk
0:04:41.6]} 10. Be3 {[%clk 0:04:29.1]} 10... Nxe3 {[%clk 0:04:37.4]} 11. fxe3
{[%clk 0:04:28]} 11... Bd7 {[%clk 0:04:34.2]} 12. Ng5 {[%clk 0:04:24.4]} 12...
O-O {[%clk 0:04:31]} 13. Bd3 {[%clk 0:04:16.7]} 13... h6 {[%clk 0:04:28.6]} 14.
Qh5 {[%clk 0:04:13.1]} 14... Bxc3 {[%clk 0:04:15.5]} 15. bxc3 {[%clk 0:04:11.2]}
15... Nxe5 {[%clk 0:04:11.2]} 16. Bc2 {[%clk 0:03:50.8]} 16... Nc4 {[%clk
0:03:45.8]} 17. Nxf7 {[%clk 0:03:43.6]} 17... Nxe3 {[%clk 0:03:32]} 18. Nxh6+
{[%clk 0:03:39]} 18... Kh8 {[%clk 0:03:22.2]} 19. Nf7+ {[%clk 0:03:36]} 19...
Kg8 {[%clk 0:03:20.2]} 20. Qh8# {[%clk 0:03:34.7]} 1-0

[Event "Live Chess"]
[Site "Chess.com"]
[Date "2024.06.02"]
[Round "-"]
[White "booktrunk"]
[Black "Dhaydon19"]
[Result "0-1"]
[WhiteElo "1519"]
[BlackElo "2673"]
[TimeControl "300"]
[EndTime "21:27:05 PDT"]
[Termination "Dhaydon19 won by resignation"]

1. d4 {[%clk 0:04:54.4]} 1... d5 {[%clk 0:04:59.4]} 2. Nc3 {[%clk 0:04:53.4]}
2... Nf6 {[%clk 0:04:59]} 3. Bf4 {[%clk 0:04:51.7]} 3... e6 {[%clk 0:04:58.5]}
4. a3 {[%clk 0:04:47.8]} 4... Bd6 {[%clk 0:04:57.8]} 5. Bxd6 {[%clk 0:04:45.7]}
5... cxd6 {[%clk 0:04:55.5]} 6. e3 {[%clk 0:04:42.8]} 6... Nc6 {[%clk
0:04:54.4]} 7. Nf3 {[%clk 0:04:40.3]} 7... O-O {[%clk 0:04:54]} 8. Bb5 {[%clk
0:04:35.4]} 8... Bd7 {[%clk 0:04:52.1]} 9. Bxc6 {[%clk 0:04:34.1]} 9... Bxc6
{[%clk 0:04:49.4]} 10. O-O {[%clk 0:04:34]} 10... Qe7 {[%clk 0:04:48]} 11. b4
{[%clk 0:04:32.2]} 11... Rac8 {[%clk 0:04:46.2]} 12. Na2 {[%clk 0:04:30.3]}
12... Ba4 {[%clk 0:04:42.6]} 13. Rc1 {[%clk 0:04:28.2]} 13... Qc7 {[%clk
0:04:36.9]} 14. Qd2 {[%clk 0:04:20.8]} 14... Qc4 {[%clk 0:04:31.7]} 15. c3
{[%clk 0:04:15.5]} 15... Ne4 {[%clk 0:04:25.6]} 16. Qb2 {[%clk 0:04:08.8]} 16...
Bb3 {[%clk 0:04:23.3]} 17. Ra1 {[%clk 0:04:04.9]} 17... Bxa2 {[%clk 0:04:21.1]}
18. Rxa2 {[%clk 0:04:03.3]} 18... Nxc3 {[%clk 0:04:19.2]} 19. Raa1 {[%clk
0:03:58.1]} 19... a6 {[%clk 0:04:18.2]} 20. Rac1 {[%clk 0:03:56.8]} 20... Ne2+
{[%clk 0:04:16.9]} 0-1